[Event "*** Titled Tuesday Blitz"]
[Site "Chess.com"]
[Date "2020.10.27"]
[Round "1"]
[White "Panterov"]
[Black "TomiLen"]
[Result "0-1"]
[WhiteElo "2304"]
[BlackElo "2652"]
[TimeControl "180+1"]
[EndTime "10:06:17 PDT"]
[Termination "TomiLen won by resignation"]

1. e4 {[%clk 0:02:58.4]} 1... e6 {[%clk 0:02:59.3]} 2. b3 {[%clk 0:02:54.2]}
2... d5 {[%clk 0:02:58.8]} 3. Bb2 {[%clk 0:02:54.4]} 3... a6 {[%clk 0:02:57]} 4.
exd5 {[%clk 0:02:53.3]} 4... exd5 {[%clk 0:02:56.5]} 5. Nf3 {[%clk 0:02:54.2]}
5... Nf6 {[%clk 0:02:55.4]} 6. Be2 {[%clk 0:02:55.1]} 6... Bd6 {[%clk
0:02:52.9]} 7. O-O {[%clk 0:02:56]} 7... O-O {[%clk 0:02:52]} 8. h3 {[%clk
0:02:55.9]} 8... Re8 {[%clk 0:02:51]} 9. d4 {[%clk 0:02:55.8]} 9... Ne4 {[%clk
0:02:49.4]} 10. Nbd2 {[%clk 0:02:53.2]} 10... Bf5 {[%clk 0:02:47.2]} 11. c4
{[%clk 0:02:52.9]} 11... c6 {[%clk 0:02:45.9]} 12. Ne5 {[%clk 0:02:41.5]} 12...
Nd7 {[%clk 0:02:41.9]} 13. f4 {[%clk 0:02:31.4]} 13... Nxd2 {[%clk 0:02:36.3]}
14. Qxd2 {[%clk 0:02:30.2]} 14... Nf6 {[%clk 0:02:36.4]} 15. Bf3 {[%clk
0:02:29]} 15... Be4 {[%clk 0:02:34.5]} 16. Rae1 {[%clk 0:02:23.6]} 16... Bxf3
{[%clk 0:02:33.8]} 17. Rxf3 {[%clk 0:02:23.1]} 17... Ne4 {[%clk 0:02:33.9]} 18.
Qc2 {[%clk 0:02:20.4]} 18... f6 {[%clk 0:02:33.2]} 19. Nd3 {[%clk 0:02:15.9]}
19... Rc8 {[%clk 0:02:27.8]} 20. Rfe3 {[%clk 0:02:15.7]} 20... Qd7 {[%clk
0:02:23.6]} 21. Qe2 {[%clk 0:02:06.2]} 21... Re7 {[%clk 0:02:18.2]} 22. Qf3
{[%clk 0:02:06]} 22... Rce8 {[%clk 0:02:16.7]} 23. R1e2 {[%clk 0:01:51.8]} 23...
b5 {[%clk 0:02:06.1]} 24. c5 {[%clk 0:01:49.6]} 24... Bc7 {[%clk 0:02:05]} 25.
Nf2 {[%clk 0:01:49.8]} 25... f5 {[%clk 0:01:53.8]} 26. Nd3 {[%clk 0:01:49.9]}
26... Re6 {[%clk 0:01:51.7]} 27. Ne5 {[%clk 0:01:49]} 27... Bxe5 {[%clk
0:01:51.4]} 28. fxe5 {[%clk 0:01:49.1]} 28... Rf8 {[%clk 0:01:50.9]} 29. Re1
{[%clk 0:01:43.6]} 29... f4 {[%clk 0:01:49.5]} 30. Rxe4 {[%clk 0:01:42.6]} 30...
dxe4 {[%clk 0:01:48.8]} 31. Rxe4 {[%clk 0:01:43.3]} 31... Qd5 {[%clk 0:01:41.9]}
32. Bc1 {[%clk 0:01:42.1]} 32... g5 {[%clk 0:01:38.6]} 33. Bb2 {[%clk
0:01:31.1]} 33... Rg6 {[%clk 0:01:34.5]} 34. Re2 {[%clk 0:01:25.2]} 34... Qxf3
{[%clk 0:01:32.8]} 35. gxf3 {[%clk 0:01:26.1]} 35... Kf7 {[%clk 0:01:32.6]} 36.
Kf2 {[%clk 0:01:25.5]} 36... Ke6 {[%clk 0:01:32.4]} 37. Re1 {[%clk 0:01:24.9]}
37... h5 {[%clk 0:01:31.8]} 38. Rg1 {[%clk 0:01:24.9]} 38... a5 {[%clk
0:01:30.6]} 39. Ke2 {[%clk 0:01:25]} 39... a4 {[%clk 0:01:29.4]} 40. b4 {[%clk
0:01:24.4]} 40... a3 {[%clk 0:01:28.5]} 41. Bc3 {[%clk 0:01:20.7]} 41... Kd5
{[%clk 0:01:28.7]} 42. Kd3 {[%clk 0:01:21.1]} 42... g4 {[%clk 0:01:24.4]} 43.
hxg4 {[%clk 0:01:20.4]} 43... hxg4 {[%clk 0:01:25.3]} 44. fxg4 {[%clk
0:01:20.1]} 44... f3 {[%clk 0:01:25.2]} 45. Ke3 {[%clk 0:01:10.2]} 45... f2
{[%clk 0:01:22.5]} 46. Rf1 {[%clk 0:01:10.5]} 46... Rxg4 {[%clk 0:01:21.5]} 47.
Ke2 {[%clk 0:00:59.5]} 47... Kc4 {[%clk 0:01:12.9]} 48. Bd2 {[%clk 0:00:52.1]}
48... Kxd4 {[%clk 0:01:08.1]} 49. e6 {[%clk 0:00:51.4]} 49... Re4+ {[%clk
0:01:07]} 50. Kd1 {[%clk 0:00:50.6]} 50... Rxe6 {[%clk 0:01:06.1]} 0-1

[Event "*** Titled Tuesday Blitz"]
[Site "Chess.com"]
[Date "2020.10.27"]
[Round "1"]
[White "A-Fier"]
[Black "geordie_derraugh"]
[Result "1-0"]
[WhiteElo "2777"]
[BlackElo "2406"]
[TimeControl "180+1"]
[EndTime "10:06:18 PDT"]
[Termination "A-Fier won on time"]

1. d4 {[%clk 0:02:59.4]} 1... Nf6 {[%clk 0:02:59.6]} 2. c4 {[%clk 0:02:58.8]}
2... e6 {[%clk 0:02:59.8]} 3. Nc3 {[%clk 0:02:58.3]} 3... Bb4 {[%clk 0:02:59.8]}
4. e3 {[%clk 0:02:57.1]} 4... O-O {[%clk 0:02:59.3]} 5. Ne2 {[%clk 0:02:54.9]}
5... Re8 {[%clk 0:02:58.3]} 6. a3 {[%clk 0:02:53.1]} 6... Bf8 {[%clk 0:02:58.2]}
7. Ng3 {[%clk 0:02:51.7]} 7... d5 {[%clk 0:02:55.4]} 8. Be2 {[%clk 0:02:49.9]}
8... b6 {[%clk 0:02:47.5]} 9. O-O {[%clk 0:02:48.9]} 9... Bb7 {[%clk 0:02:44.1]}
10. cxd5 {[%clk 0:02:48.5]} 10... exd5 {[%clk 0:02:42.2]} 11. b4 {[%clk
0:02:48.2]} 11... c6 {[%clk 0:02:27.4]} 12. Rb1 {[%clk 0:02:45.6]} 12... Nbd7
{[%clk 0:02:22.8]} 13. Bf3 {[%clk 0:02:33]} 13... a5 {[%clk 0:01:59.1]} 14. b5
{[%clk 0:02:31.8]} 14... c5 {[%clk 0:01:59.4]} 15. dxc5 {[%clk 0:02:26.6]} 15...
Nxc5 {[%clk 0:01:54]} 16. Nf5 {[%clk 0:02:20.5]} 16... a4 {[%clk 0:01:14.5]} 17.
Nd4 {[%clk 0:02:15.4]} 17... Nfe4 {[%clk 0:01:14.5]} 18. Bb2 {[%clk 0:02:07.5]}
18... Qg5 {[%clk 0:00:57.2]} 19. Nxe4 {[%clk 0:01:59.2]} 19... dxe4 {[%clk
0:00:57]} 20. Be2 {[%clk 0:01:58.7]} 20... Red8 {[%clk 0:00:52.9]} 21. g3 {[%clk
0:01:56]} 21... Bd6 {[%clk 0:00:52.3]} 22. Qc2 {[%clk 0:01:47.3]} 22... h5
{[%clk 0:00:44.2]} 23. h4 {[%clk 0:01:41]} 23... Qg6 {[%clk 0:00:35.2]} 24. Kh2
{[%clk 0:01:40.3]} 24... Rac8 {[%clk 0:00:21.8]} 25. Nc6 {[%clk 0:01:38.2]}
25... Bxc6 {[%clk 0:00:17.2]} 26. bxc6 {[%clk 0:01:39.1]} 26... Rxc6 {[%clk
0:00:17.3]} 27. Rbd1 {[%clk 0:01:39.8]} 27... Rdc8 {[%clk 0:00:16.8]} 28. Qd2
{[%clk 0:01:37.6]} 28... Qf5 {[%clk 0:00:15.2]} 29. Qd4 {[%clk 0:01:35.4]} 29...
f6 {[%clk 0:00:09.8]} 30. Bb5 {[%clk 0:01:32.7]} 30... Be5 {[%clk 0:00:08.8]}
31. Qd5+ {[%clk 0:01:32.4]} 31... Qe6 {[%clk 0:00:09]} 32. Bxe5 {[%clk
0:01:31.7]} 32... fxe5 {[%clk 0:00:07.6]} 33. Bxc6 {[%clk 0:01:31.6]} 33... Rxc6
{[%clk 0:00:08.5]} 34. Qd8+ {[%clk 0:01:31.4]} 34... Kh7 {[%clk 0:00:07.8]} 35.
Qg5 {[%clk 0:01:32]} 35... g6 {[%clk 0:00:03.8]} 36. Rd8 {[%clk 0:01:30.7]}
36... Qf7 {[%clk 0:00:02.9]} 37. Qxe5 {[%clk 0:01:29.5]} 37... Rf6 {[%clk
0:00:02.9]} 38. Kg1 {[%clk 0:01:26]} 38... Qe6 {[%clk 0:00:01.8]} 39. Qc7+
{[%clk 0:01:25.7]} 1-0

[Event "*** Titled Tuesday Blitz"]
[Site "Chess.com"]
[Date "2020.10.27"]
[Round "1"]
[White "bascheyaro"]
[Black "mapleaff"]
[Result "1-0"]
[WhiteElo "2738"]
[BlackElo "2380"]
[TimeControl "180+1"]
[EndTime "10:06:20 PDT"]
[Termination "bascheyaro won by resignation"]

1. d4 {[%clk 0:03:00.9]} 1... Nf6 {[%clk 0:02:59.5]} 2. Bf4 {[%clk 0:03:00.9]}
2... e6 {[%clk 0:02:59.9]} 3. e3 {[%clk 0:03:01.1]} 3... c5 {[%clk 0:03:00.1]}
4. Nf3 {[%clk 0:03:01.2]} 4... Qb6 {[%clk 0:02:59.4]} 5. Nc3 {[%clk 0:03:01.2]}
5... cxd4 {[%clk 0:02:55.2]} 6. exd4 {[%clk 0:03:01]} 6... Bb4 {[%clk 0:02:42]}
7. Bd3 {[%clk 0:02:55.2]} 7... Nc6 {[%clk 0:02:32.7]} 8. a3 {[%clk 0:02:45.7]}
8... Bxc3+ {[%clk 0:02:27.2]} 9. bxc3 {[%clk 0:02:46.6]} 9... h6 {[%clk
0:02:17.7]} 10. O-O {[%clk 0:02:45.8]} 10... O-O {[%clk 0:02:14.8]} 11. a4
{[%clk 0:02:44.7]} 11... Nd5 {[%clk 0:02:04.7]} 12. Bd2 {[%clk 0:02:43.5]} 12...
d6 {[%clk 0:01:59]} 13. a5 {[%clk 0:02:28.4]} 13... Qd8 {[%clk 0:01:54.6]} 14.
Qe2 {[%clk 0:02:27.9]} 14... f5 {[%clk 0:01:48.9]} 15. Rfe1 {[%clk 0:02:23.1]}
15... Bd7 {[%clk 0:01:44.3]} 16. h3 {[%clk 0:02:02.9]} 16... Rc8 {[%clk
0:01:26.1]} 17. c4 {[%clk 0:02:03]} 17... Ndb4 {[%clk 0:01:23.2]} 18. Bf4 {[%clk
0:02:02.2]} 18... Nxd3 {[%clk 0:01:21.9]} 19. cxd3 {[%clk 0:02:02]} 19... Qe7
{[%clk 0:01:06.4]} 20. d5 {[%clk 0:02:02]} 20... Nd8 {[%clk 0:01:03.1]} 21. dxe6
{[%clk 0:02:01.6]} 21... Nxe6 {[%clk 0:01:03]} 22. Nd4 {[%clk 0:01:57.1]} 22...
Rce8 {[%clk 0:00:57.7]} 23. Nxe6 {[%clk 0:01:51.9]} 23... Bxe6 {[%clk
0:00:47.8]} 24. Qb2 {[%clk 0:01:48.9]} 24... Qd7 {[%clk 0:00:42.8]} 25. Qd4
{[%clk 0:01:47]} 25... d5 {[%clk 0:00:29]} 26. c5 {[%clk 0:01:47.1]} 26... Bf7
{[%clk 0:00:23.9]} 27. Reb1 {[%clk 0:01:31.3]} 27... Re6 {[%clk 0:00:17.9]} 28.
Be5 {[%clk 0:01:31.3]} 28... Be8 {[%clk 0:00:15.5]} 29. f4 {[%clk 0:01:30.9]}
29... g5 {[%clk 0:00:12.9]} 30. Qf2 {[%clk 0:01:21.1]} 30... gxf4 {[%clk
0:00:12.3]} 31. Qxf4 {[%clk 0:01:20.6]} 31... Qe7 {[%clk 0:00:10.1]} 32. d4
{[%clk 0:01:20.6]} 32... Qg5 {[%clk 0:00:09.3]} 33. Qxg5+ {[%clk 0:01:17.8]}
33... hxg5 {[%clk 0:00:10.2]} 34. Rxb7 {[%clk 0:01:18.1]} 34... f4 {[%clk
0:00:10.5]} 35. Rxa7 {[%clk 0:01:17]} 35... Bf7 {[%clk 0:00:09.7]} 36. a6 {[%clk
0:01:15.8]} 36... Rg6 {[%clk 0:00:09.5]} 37. Rb7 {[%clk 0:01:13]} 37... Be6
{[%clk 0:00:09.5]} 38. a7 {[%clk 0:01:12.4]} 38... g4 {[%clk 0:00:09.7]} 39. Rb8
{[%clk 0:01:11.7]} 1-0

[Event "*** Titled Tuesday Blitz"]
[Site "Chess.com"]
[Date "2020.10.27"]
[Round "1"]
[White "Danny_Billiards"]
[Black "lelya96"]
[Result "1-0"]
[WhiteElo "2550"]
[BlackElo "2166"]
[TimeControl "180+1"]
[EndTime "10:06:21 PDT"]
[Termination "Danny_Billiards won by checkmate"]

1. d4 {[%clk 0:03:00.9]} 1... d5 {[%clk 0:02:54.6]} 2. c4 {[%clk 0:03:00.2]}
2... c6 {[%clk 0:02:51.8]} 3. Nc3 {[%clk 0:02:59.1]} 3... Nf6 {[%clk 0:02:50]}
4. e3 {[%clk 0:02:59.2]} 4... dxc4 {[%clk 0:02:46.6]} 5. Bxc4 {[%clk 0:02:58.5]}
5... e6 {[%clk 0:02:46.6]} 6. Nf3 {[%clk 0:02:54.6]} 6... Be7 {[%clk 0:02:43.4]}
7. O-O {[%clk 0:02:54]} 7... O-O {[%clk 0:02:42.3]} 8. a4 {[%clk 0:02:53.9]}
8... b6 {[%clk 0:02:37.6]} 9. Qe2 {[%clk 0:02:53]} 9... Bb7 {[%clk 0:02:37.6]}
10. e4 {[%clk 0:02:50.5]} 10... Nbd7 {[%clk 0:02:37.4]} 11. Bf4 {[%clk 0:02:50]}
11... c5 {[%clk 0:02:36.7]} 12. Rad1 {[%clk 0:02:47.3]} 12... Qe8 {[%clk
0:02:35.4]} 13. Nb5 {[%clk 0:02:40]} 13... Nh5 {[%clk 0:02:26.9]} 14. Bd6 {[%clk
0:02:03.8]} 14... Bxd6 {[%clk 0:02:17.7]} 15. Nxd6 {[%clk 0:02:04.7]} 15... Qb8
{[%clk 0:02:17.6]} 16. Nxb7 {[%clk 0:02:04.5]} 16... Qxb7 {[%clk 0:02:15.7]} 17.
Qe3 {[%clk 0:02:04.7]} 17... cxd4 {[%clk 0:02:11.9]} 18. Nxd4 {[%clk 0:02:05.6]}
18... Ne5 {[%clk 0:01:53.6]} 19. Be2 {[%clk 0:02:01.2]} 19... Nf6 {[%clk
0:01:52.7]} 20. f3 {[%clk 0:01:54.8]} 20... a6 {[%clk 0:01:38.8]} 21. Nb3 {[%clk
0:01:44.4]} 21... Rfd8 {[%clk 0:01:26.9]} 22. Rd4 {[%clk 0:01:32]} 22... Nc6
{[%clk 0:01:22.3]} 23. Rxd8+ {[%clk 0:01:29.6]} 23... Rxd8 {[%clk 0:01:21.3]}
24. Rc1 {[%clk 0:01:30.5]} 24... e5 {[%clk 0:01:12.9]} 25. Bc4 {[%clk
0:01:25.2]} 25... Nd4 {[%clk 0:01:06.2]} 26. Rd1 {[%clk 0:01:24.6]} 26... Rc8
{[%clk 0:00:40.7]} 27. Nxd4 {[%clk 0:01:22.8]} 27... Rxc4 {[%clk 0:00:39.9]} 28.
Nf5 {[%clk 0:01:23.7]} 28... h6 {[%clk 0:00:37.3]} 29. Nd6 {[%clk 0:01:22.7]}
29... Qd7 {[%clk 0:00:33.5]} 30. Qe2 {[%clk 0:01:20]} 30... Rxa4 {[%clk
0:00:20.5]} 31. Nf5 {[%clk 0:01:16.7]} 31... Qb5 {[%clk 0:00:18.6]} 32. Qf2
{[%clk 0:01:14.9]} 32... Rb4 {[%clk 0:00:16]} 33. Qg3 {[%clk 0:01:13]} 33...
Qc5+ {[%clk 0:00:12.9]} 34. Kh1 {[%clk 0:01:11.2]} 34... Qf8 {[%clk 0:00:12.9]}
35. Rd8 {[%clk 0:01:08.7]} 35... Nh5 {[%clk 0:00:10.6]} 36. Rxf8+ {[%clk
0:01:06.9]} 36... Kxf8 {[%clk 0:00:11.5]} 37. Qh4 {[%clk 0:01:07.5]} 37... g6
{[%clk 0:00:11.9]} 38. Qd8# {[%clk 0:01:06.9]} 1-0

[Event "*** Titled Tuesday Blitz"]
[Site "Chess.com"]
[Date "2020.10.27"]
[Round "1"]
[White "RobertoJBM"]
[Black "maxip32"]
[Result "1-0"]
[WhiteElo "2803"]
[BlackElo "2414"]
[TimeControl "180+1"]
[EndTime "10:06:23 PDT"]
[Termination "RobertoJBM won on time"]

1. d4 {[%clk 0:03:00.1]} 1... Nf6 {[%clk 0:02:59.4]} 2. c4 {[%clk 0:03:00.2]}
2... g6 {[%clk 0:02:59.2]} 3. Nc3 {[%clk 0:03:00]} 3... Bg7 {[%clk 0:02:59.1]}
4. e4 {[%clk 0:02:59.9]} 4... d6 {[%clk 0:02:59.4]} 5. f3 {[%clk 0:02:57.9]}
5... O-O {[%clk 0:02:58.6]} 6. Be3 {[%clk 0:02:57.5]} 6... Nc6 {[%clk
0:02:58.1]} 7. Qd2 {[%clk 0:02:55.3]} 7... a6 {[%clk 0:02:57.8]} 8. Bd3 {[%clk
0:02:45.7]} 8... e5 {[%clk 0:02:52.7]} 9. d5 {[%clk 0:02:43.7]} 9... Nd4 {[%clk
0:02:52.4]} 10. Nge2 {[%clk 0:02:43.7]} 10... Nxe2 {[%clk 0:02:39]} 11. Bxe2
{[%clk 0:02:38.1]} 11... Nh5 {[%clk 0:02:11.4]} 12. g3 {[%clk 0:02:37.6]} 12...
f5 {[%clk 0:02:07.8]} 13. O-O-O {[%clk 0:02:33.6]} 13... f4 {[%clk 0:01:44.1]}
14. Bf2 {[%clk 0:02:33.5]} 14... Bd7 {[%clk 0:01:33]} 15. g4 {[%clk 0:02:26.6]}
15... Nf6 {[%clk 0:01:32.3]} 16. Kb1 {[%clk 0:02:14.5]} 16... Ne8 {[%clk
0:01:25.9]} 17. Rc1 {[%clk 0:02:13.2]} 17... c5 {[%clk 0:01:23.3]} 18. dxc6
{[%clk 0:02:09.4]} 18... bxc6 {[%clk 0:00:50]} 19. c5 {[%clk 0:02:06.2]} 19...
Be6 {[%clk 0:00:27.8]} 20. cxd6 {[%clk 0:01:58.5]} 20... Qxd6 {[%clk 0:00:23.5]}
21. Qxd6 {[%clk 0:01:56.4]} 21... Nxd6 {[%clk 0:00:24.4]} 22. Rhd1 {[%clk
0:01:56.2]} 22... Rfd8 {[%clk 0:00:19.2]} 23. Na4 {[%clk 0:01:46.2]} 23... Nb5
{[%clk 0:00:09.7]} 24. Nc5 {[%clk 0:01:43.1]} 24... Rxd1 {[%clk 0:00:08.6]} 25.
Rxd1 {[%clk 0:01:42.2]} 25... Bf7 {[%clk 0:00:08.8]} 26. Rd7 {[%clk 0:01:33.9]}
26... Nd4 {[%clk 0:00:08.4]} 27. Bxd4 {[%clk 0:01:33.5]} 27... exd4 {[%clk
0:00:09.3]} 28. b3 {[%clk 0:01:06.7]} 28... Bf8 {[%clk 0:00:05.2]} 29. Nd3
{[%clk 0:01:04.3]} 29... c5 {[%clk 0:00:01.5]} 30. Ne5 {[%clk 0:01:00]} 30...
Be6 {[%clk 0:00:01.2]} 31. Bc4 {[%clk 0:00:59.6]} 31... Bxc4 {[%clk 0:00:01.2]}
32. Nxc4 {[%clk 0:01:00.5]} 1-0

[Event "*** Titled Tuesday Blitz"]
[Site "Chess.com"]
[Date "2020.10.27"]
[Round "1"]
[White "northridgehawk"]
[Black "davidkalashian"]
[Result "0-1"]
[WhiteElo "2248"]
[BlackElo "2591"]
[TimeControl "180+1"]
[EndTime "10:06:23 PDT"]
[Termination "davidkalashian won by resignation"]

1. e4 {[%clk 0:02:59.5]} 1... c6 {[%clk 0:02:57.2]} 2. d4 {[%clk 0:02:39.6]}
2... g6 {[%clk 0:02:47.9]} 3. Be3 {[%clk 0:02:25.5]} 3... Bg7 {[%clk 0:02:47.3]}
4. Qd2 {[%clk 0:02:19.1]} 4... d6 {[%clk 0:02:46.9]} 5. Nc3 {[%clk 0:02:06.2]}
5... Nd7 {[%clk 0:02:44.8]} 6. O-O-O {[%clk 0:02:04.1]} 6... b5 {[%clk
0:02:43.4]} 7. Kb1 {[%clk 0:01:56]} 7... Nb6 {[%clk 0:02:38.7]} 8. f4 {[%clk
0:01:42.9]} 8... Nf6 {[%clk 0:02:17.6]} 9. Bd3 {[%clk 0:01:41.5]} 9... Ng4
{[%clk 0:02:04.8]} 10. h3 {[%clk 0:01:33.2]} 10... Nxe3 {[%clk 0:02:02.6]} 11.
Qxe3 {[%clk 0:01:34.1]} 11... Rb8 {[%clk 0:01:59.9]} 12. Nf3 {[%clk 0:01:33.7]}
12... Nc4 {[%clk 0:01:55.7]} 13. Qe2 {[%clk 0:01:25.4]} 13... Qa5 {[%clk
0:01:42]} 14. Bxc4 {[%clk 0:01:18.4]} 14... bxc4 {[%clk 0:01:42.9]} 15. Qxc4
{[%clk 0:01:18.3]} 15... O-O {[%clk 0:01:33]} 16. e5 {[%clk 0:01:06.9]} 16...
Ba6 {[%clk 0:01:22.6]} 17. Qa4 {[%clk 0:00:22.6]} 17... Qxc3 {[%clk 0:01:21.4]}
18. b3 {[%clk 0:00:21.6]} 18... Be2 {[%clk 0:01:17.3]} 19. Rde1 {[%clk
0:00:16.2]} 19... Bxf3 {[%clk 0:01:14.3]} 20. gxf3 {[%clk 0:00:17.1]} 20... Rb4
{[%clk 0:01:13.5]} 21. Qxa7 {[%clk 0:00:16.3]} 21... Qxd4 {[%clk 0:01:09.3]} 22.
Qxd4 {[%clk 0:00:15.3]} 22... Rxd4 {[%clk 0:01:10.2]} 23. Re4 {[%clk 0:00:14.7]}
23... Rxe4 {[%clk 0:01:09.1]} 24. fxe4 {[%clk 0:00:15.6]} 24... dxe5 {[%clk
0:01:09.5]} 25. f5 {[%clk 0:00:15.9]} 25... gxf5 {[%clk 0:01:01.7]} 26. exf5
{[%clk 0:00:16.8]} 26... e6 {[%clk 0:01:02.2]} 27. Rg1 {[%clk 0:00:16.2]} 27...
exf5 {[%clk 0:01:00.8]} 28. Rg5 {[%clk 0:00:14.6]} 28... f4 {[%clk 0:01:00.5]}
29. h4 {[%clk 0:00:15.5]} 29... h6 {[%clk 0:00:57]} 30. Rf5 {[%clk 0:00:15.4]}
30... Kh7 {[%clk 0:00:56.6]} 31. h5 {[%clk 0:00:14.9]} 31... f6 {[%clk
0:00:56.5]} 32. a4 {[%clk 0:00:15.5]} 32... Rd8 {[%clk 0:00:53.9]} 33. a5 {[%clk
0:00:14.9]} 33... Kg8 {[%clk 0:00:54.1]} 34. b4 {[%clk 0:00:15.1]} 34... Kf7
{[%clk 0:00:54]} 0-1

[Event "*** Titled Tuesday Blitz"]
[Site "Chess.com"]
[Date "2020.10.27"]
[Round "1"]
[White "Margarita2907"]
[Black "doons21"]
[Result "0-1"]
[WhiteElo "2179"]
[BlackElo "2554"]
[TimeControl "180+1"]
[EndTime "10:06:29 PDT"]
[Termination "doons21 won by resignation"]

1. e4 {[%clk 0:02:59.5]} 1... e6 {[%clk 0:02:59.2]} 2. d4 {[%clk 0:02:58.7]}
2... d5 {[%clk 0:02:58.2]} 3. Nd2 {[%clk 0:02:57.3]} 3... Nc6 {[%clk 0:02:50.6]}
4. Ngf3 {[%clk 0:02:55.4]} 4... Nf6 {[%clk 0:02:50.7]} 5. Bd3 {[%clk 0:02:46.8]}
5... Nb4 {[%clk 0:02:50.2]} 6. Qe2 {[%clk 0:02:33.2]} 6... Nxd3+ {[%clk
0:02:48.6]} 7. Qxd3 {[%clk 0:02:32.3]} 7... dxe4 {[%clk 0:02:40.6]} 8. Nxe4
{[%clk 0:02:30.4]} 8... Be7 {[%clk 0:02:40.5]} 9. O-O {[%clk 0:02:29.6]} 9...
O-O {[%clk 0:02:40.9]} 10. c3 {[%clk 0:02:19.5]} 10... c5 {[%clk 0:02:39]} 11.
Rd1 {[%clk 0:02:14.7]} 11... cxd4 {[%clk 0:02:39]} 12. Nxd4 {[%clk 0:02:12.4]}
12... Qb6 {[%clk 0:02:34.5]} 13. Nxf6+ {[%clk 0:02:00.9]} 13... Bxf6 {[%clk
0:02:34.2]} 14. Qe2 {[%clk 0:01:55.1]} 14... Qa6 {[%clk 0:02:14]} 15. Qxa6
{[%clk 0:01:48.1]} 15... bxa6 {[%clk 0:02:14.9]} 16. Be3 {[%clk 0:01:45.1]}
16... Bb7 {[%clk 0:02:10.7]} 17. Nb3 {[%clk 0:01:41.4]} 17... Bd5 {[%clk
0:01:55.4]} 18. Nc5 {[%clk 0:01:38.8]} 18... a5 {[%clk 0:01:55.7]} 19. Nd7
{[%clk 0:01:37.9]} 19... Rfc8 {[%clk 0:01:53.7]} 20. Nxf6+ {[%clk 0:01:37.5]}
20... gxf6 {[%clk 0:01:54.6]} 21. Rd4 {[%clk 0:01:34.6]} 21... Rab8 {[%clk
0:01:51.7]} 22. Rg4+ {[%clk 0:01:18.7]} 22... Kf8 {[%clk 0:01:50.8]} 23. Bxa7
{[%clk 0:01:10]} 23... Rxb2 {[%clk 0:01:49.7]} 24. Rc1 {[%clk 0:00:51.6]} 24...
Rxa2 {[%clk 0:01:45.1]} 25. h4 {[%clk 0:00:38.3]} 25... Rc4 {[%clk 0:01:38.6]}
26. Rxc4 {[%clk 0:00:34.2]} 26... Bxc4 {[%clk 0:01:39.5]} 27. Rb1 {[%clk
0:00:24.8]} 27... Kg7 {[%clk 0:01:28.7]} 28. Rb7 {[%clk 0:00:20.6]} 28... Rc2
{[%clk 0:01:24.1]} 29. Bb6 {[%clk 0:00:17.3]} 29... a4 {[%clk 0:01:23.8]} 30.
Ra7 {[%clk 0:00:17.2]} 30... Bb3 {[%clk 0:01:23.7]} 31. Bc5 {[%clk 0:00:09.7]}
31... Rxc3 {[%clk 0:01:22.6]} 32. Bb4 {[%clk 0:00:10.2]} 32... Rc4 {[%clk
0:01:21.1]} 33. Ba3 {[%clk 0:00:10.1]} 33... Rxh4 {[%clk 0:01:21.5]} 34. g3
{[%clk 0:00:10.1]} 34... Rc4 {[%clk 0:01:19.2]} 35. Kg2 {[%clk 0:00:10.3]} 35...
Rc2 {[%clk 0:01:19.7]} 36. Kf3 {[%clk 0:00:08.5]} 36... Bd5+ {[%clk 0:01:19.2]}
37. Kf4 {[%clk 0:00:07.1]} 37... Rc4+ {[%clk 0:01:19.4]} 38. Ke3 {[%clk
0:00:06.1]} 38... Rc3+ {[%clk 0:01:20.3]} 39. Kd4 {[%clk 0:00:06.2]} 39... Rxa3
{[%clk 0:01:21.2]} 40. Kc5 {[%clk 0:00:06]} 40... Ra1 {[%clk 0:01:20.2]} 41. Kb4
{[%clk 0:00:06.5]} 0-1

[Event "*** Titled Tuesday Blitz"]
[Site "Chess.com"]
[Date "2020.10.27"]
[Round "1"]
[White "ENajer77"]
[Black "zmeeed67"]
[Result "1-0"]
[WhiteElo "2690"]
[BlackElo "2348"]
[TimeControl "180+1"]
[EndTime "10:06:35 PDT"]
[Termination "ENajer77 won by resignation"]

1. e4 {[%clk 0:02:58.3]} 1... Nc6 {[%clk 0:02:59.6]} 2. Nf3 {[%clk 0:02:53.4]}
2... d6 {[%clk 0:02:59.3]} 3. d4 {[%clk 0:02:50.2]} 3... Nf6 {[%clk 0:02:59.1]}
4. Nc3 {[%clk 0:02:43.8]} 4... Bg4 {[%clk 0:02:57.4]} 5. Bb5 {[%clk 0:02:39.9]}
5... a6 {[%clk 0:02:56.6]} 6. Bxc6+ {[%clk 0:02:38.3]} 6... bxc6 {[%clk
0:02:56.6]} 7. h3 {[%clk 0:02:39]} 7... Bc8 {[%clk 0:02:56.4]} 8. O-O {[%clk
0:02:36]} 8... e6 {[%clk 0:02:56.6]} 9. Re1 {[%clk 0:02:32.2]} 9... Be7 {[%clk
0:02:56.6]} 10. e5 {[%clk 0:02:32.2]} 10... Nd5 {[%clk 0:02:56.1]} 11. Ne4
{[%clk 0:02:31.4]} 11... h6 {[%clk 0:02:35.6]} 12. c4 {[%clk 0:02:17.8]} 12...
Nb6 {[%clk 0:02:34.7]} 13. b3 {[%clk 0:02:17.7]} 13... d5 {[%clk 0:02:11.6]} 14.
Ng3 {[%clk 0:02:03.7]} 14... c5 {[%clk 0:01:54.8]} 15. dxc5 {[%clk 0:02:00.8]}
15... Bxc5 {[%clk 0:01:53.7]} 16. Nh5 {[%clk 0:01:45.3]} 16... O-O {[%clk
0:01:10.3]} 17. Bxh6 {[%clk 0:01:39.8]} 17... gxh6 {[%clk 0:00:53.9]} 18. Qc1
{[%clk 0:01:40.4]} 18... Kh7 {[%clk 0:00:18.6]} 19. Qf4 {[%clk 0:01:35.8]} 19...
Be7 {[%clk 0:00:14.6]} 20. Rad1 {[%clk 0:01:32.8]} 20... Bb7 {[%clk 0:00:14.1]}
21. Nf6+ {[%clk 0:01:22.3]} 21... Bxf6 {[%clk 0:00:14.1]} 22. exf6 {[%clk
0:01:23.2]} 22... Rg8 {[%clk 0:00:13]} 23. Ne5 {[%clk 0:01:20.9]} 23... c6
{[%clk 0:00:11.7]} 24. Nxf7 {[%clk 0:01:15.4]} 24... Qf8 {[%clk 0:00:10.9]} 25.
Rxe6 {[%clk 0:01:13.1]} 25... Qxf7 {[%clk 0:00:10.5]} 26. Re7 {[%clk 0:01:13.5]}
26... Raf8 {[%clk 0:00:10.4]} 27. Qc7 {[%clk 0:01:12.8]} 27... Kg6 {[%clk
0:00:08.7]} 28. Rxf7 {[%clk 0:01:11.5]} 28... Rxf7 {[%clk 0:00:09]} 29. Qxb6
{[%clk 0:01:11.9]} 29... dxc4 {[%clk 0:00:08.3]} 30. bxc4 {[%clk 0:01:07.1]}
30... c5 {[%clk 0:00:08.6]} 31. f3 {[%clk 0:01:02.3]} 31... Kh7 {[%clk
0:00:08.1]} 32. Kf2 {[%clk 0:01:00.8]} 32... Rg6 {[%clk 0:00:07.2]} 33. Rd6
{[%clk 0:00:59.9]} 33... Bc8 {[%clk 0:00:07.3]} 34. Qxc5 {[%clk 0:00:58.7]}
34... Bb7 {[%clk 0:00:06.2]} 35. Qf5 {[%clk 0:00:57.6]} 1-0